bitfinex-derivatives/quotes_ETHF0:USTF0_20251211
["timestamp","ask_amount","ask_price","bid_price","bid_amount"]
[1765469986048,3.21012913,3162.1,3161.8,0.15812]
[1765469986451,3.21012913,3162.1,3162.0,3.7086]
[1765469986758,3.21012913,3162.1,3162.0,5.03281]
[1765469987150,3.21012913,3162.1,3162.0,3.86671]
[1765469987659,5.02182913,3162.1,3162.0,2.03511]
[1765469987955,6.85932913,3162.1,3162.0,0.15811]
[1765469988556,3.21012913,3162.1,3162.0,3.86671]
[1765469989657,0.00232913,3162.1,3162.0,5.03071]
[1765469992165,1.91002913,3162.1,3162.0,2.03511]
[1765469992556,7.05092913,3162.1,3162.0,0.15811]
[1765469993053,7.05092913,3162.1,3161.6,0.00389686]
[1765469993652,7.05092913,3162.1,3161.6,0.16202686]
[1765469994057,5.1155,3161.7,3161.6,2.11082686]
[1765469994660,5.1155,3161.7,3161.6,3.94522686]
[1765469995360,3.2078,3161.7,3161.6,3.94522686]
[1765469995966,7.0486,3161.7,3161.6,2.11082686]
[1765469996257,7.0486,3161.7,3161.6,0.16202686]
[1765469996657,7.0486,3161.7,3161.6,2.11082686]
[1765469996951,3.2078,3161.7,3161.6,3.94522686]
[1765469999856,7.0486,3161.7,3161.6,2.11082686]
[1765470000156,7.0486,3161.7,3161.6,0.16202686]
[1765470000862,3.2078,3161.7,3161.6,3.94522686]
[1765470001060,7.0486,3161.7,3161.6,0.16202686]
[1765470001557,7.0486,3161.7,3161.5,0.00474736]
[1765470001558,1.9077,3161.6,3161.5,3.94607736]
[1765470001765,7.0486,3161.7,3161.6,0.15813]
[1765470002259,3.8408,3161.6,3161.5,0.00474736]
[1765470002563,5.0094,3161.0,3160.9,0.15816]
[1765470002757,8.2172,3161.0,3160.9,0.16217203]
[1765470003153,3.8408,3160.2,3160.1,0.1582]
[1765470003354,3.8408,3160.2,3159.5,0.15824]
[1765470003355,1.9077,3159.6,3159.5,0.15824]
[1765470003754,3.2078,3159.8,3159.7,3.94143]
[1765470003952,3.2078,3160.2,3160.0,0.15821]
[1765470004156,1.9077,3160.1,3160.0,0.16164949]
[1765470004357,3.8408,3160.1,3160.0,0.16164949]
[1765470006256,3.21168416,3160.2,3160.0,2.11044949]
[1765470006563,3.8408,3160.1,3160.0,0.16164949]
[1765470006965,3.8408,3160.1,3160.0,0.00343949]
[1765470010163,5.11938416,3160.2,3160.1,1.9488]
[1765470010663,3.21168416,3160.2,3160.1,3.94141]
[1765470010862,0.00474736,3160.5,3160.4,3.94139]
[1765470011063,3.84554736,3160.5,3160.4,3.2078]
[1765470011263,1.1792,3160.2,3160.0,2.11044949]
[1765470011568,1.9077,3160.1,3160.0,0.16164949]
[1765470011762,3.21254736,3160.5,3160.1,3.7832]
[1765470011956,0.00754666,3160.5,3160.4,3.94139]
[1765470012160,4.3681,3161.5,3161.0,1.9488]
[1765470012365,3.8408,3161.0,3160.9,0.15816]
[1765470013364,3.84439883,3161.0,3160.9,0.15816]
[1765470014365,3.7419,3160.7,3160.6,0.00474736]
[1765470015763,0.00359883,3161.0,3160.7,1.8175]
[1765470015962,2.9304,3160.8,3160.6,0.16292736]
[1765470016262,3.6723,3160.7,3160.6,0.16292736]
[1765470018465,0.00474736,3161.3,3160.6,0.16292736]
[1765470018466,1.6620948,3163.1,3161.7,0.8652]
[1765470018666,1.0923,3163.8,3163.0,3.0736]
[1765470018863,4.6317,3163.8,3163.1,2.39993864]
[1765470019068,4.6317,3163.8,3163.1,2.74648507]
[1765470019069,8.79687184,3163.8,3163.1,2.74648507]
[1765470019265,8.79687184,3163.8,3163.0,0.25545545]
[1765470019266,8.79687184,3163.8,3163.2,0.15805]
[1765470019466,1.0923,3163.8,3163.7,6.43943]
[1765470019766,7.70745823,3163.8,3163.7,3.2078]
[1765470021468,5.95175823,3163.8,3163.7,3.2078]
[1765470021669,7.70745823,3163.8,3163.7,3.2078]
[1765470021871,8.81165823,3163.8,3163.7,3.2078]
[1765470022373,3.5394,3163.3,3163.2,0.00806281]
[1765470022560,3.5394,3163.3,3161.7,4.432]
[1765470022561,7.70457184,3163.3,3161.5,3.96081276]
[1765470022760,1.7837,3162.4,3162.3,3.2078]
[1765470022965,3.5394,3162.4,3162.1,3.2078]
[1765470023168,3.5394,3162.2,3162.1,3.2078]
[1765470023568,4.49677184,3162.2,3162.1,3.2078]
[1765470023766,4.49677184,3162.2,3162.1,3.2118683]
[1765470023767,0.95737184,3162.2,3162.1,3.2118683]
[1765470024068,2.74107184,3162.2,3162.1,3.2118683]
[1765470024274,0.00474736,3162.5,3162.1,5.0986683]
[1765470024472,0.9621192,3162.5,3162.1,5.0986683]
[1765470024772,1.7837,3162.2,3162.1,3.2118683]
[1765470025169,0.95737184,3162.2,3162.1,5.0986683]
[1765470025368,4.49677184,3162.2,3162.1,3.2118683]
[1765470025569,0.00474736,3162.5,3162.1,3.2118683]
[1765470025873,0.95737184,3162.4,3162.1,3.2118683]
[1765470026178,0.00474736,3162.5,3162.4,3.686]
[1765470027671,0.00474736,3162.5,3162.4,3.84409]
[1765470028778,0.00474736,3162.5,3162.4,0.15809]
[1765470028973,0.00474736,3162.5,3162.4,2.04489]
[1765470029176,0.00474736,3162.5,3162.4,3.84409]
[1765470030880,2.7458192,3162.5,3162.4,0.15809]
[1765470031073,0.00474736,3162.5,3162.4,0.15809]
[1765470031267,0.00474736,3162.5,3162.4,2.04489]
[1765470031574,0.00474736,3162.5,3162.4,3.84409]
[1765470033478,0.9621192,3162.5,3162.4,3.84409]
[1765470035981,3.2078,3163.5,3163.4,3.686]
[1765470036189,0.95737184,3163.5,3163.4,3.84404]
[1765470036490,0.00288639,3163.8,3163.7,2.04483]
[1765470036693,0.00288639,3163.8,3163.7,3.84403]
[1765470036984,0.96025823,3163.8,3163.7,5.25263]
[1765470037987,2.74395823,3163.8,3163.7,3.36583]
[1765470038189,4.49965823,3163.8,3163.7,0.15803]
[1765470038487,1.7837,3163.5,3163.4,0.15804]
[1765470039277,3.5394,3163.3,3162.8,3.2078]
[1765470039477,0.00474736,3163.4,3162.9,0.15806]
[1765470039692,0.00474736,3163.4,3163.3,1.8868]
[1765470039878,0.00474736,3163.4,3163.3,3.686]
[1765470040083,0.00474736,3163.4,3163.3,3.84405]
[1765470040685,1.78844736,3163.4,3163.3,0.15805]
[1765470040883,0.15792,3165.9,3163.8,1.1192]
[1765470041086,3.2078,3164.8,3164.7,3.686]
[1765470041383,3.2078,3165.4,3164.7,7.05177]
[1765470041882,3.2078,3165.4,3164.7,7.05650978]
[1765470042084,3.21019103,3165.4,3164.7,5.26063456]
[1765470042588,3.21019103,3165.4,3164.8,3.2078]
[1765470043488,3.21019103,3165.4,3164.9,0.15796]
[1765470043786,3.21019103,3165.4,3165.3,3.84395]
[1765470044086,0.00239103,3165.4,3165.3,7.20340478]
[1765470044287,3.2078,3167.0,3166.3,0.15789]
[1765470044592,3.2078,3167.0,3166.3,0.16262978]
[1765470044787,1.7837,3166.4,3166.3,0.16262978]
[1765470045087,3.5394,3166.4,3166.3,0.16262978]
[1765470045284,6.74977282,3166.4,3166.3,0.00473978]
[1765470045489,6.74977282,3166.4,3165.5,0.15793]
[1765470045991,6.74977282,3166.4,3165.9,3.2078]
[1765470046584,4.99407282,3166.4,3165.9,3.2078]
[1765470047190,1.7837,3166.0,3165.9,3.2078]
[1765470047387,3.21037282,3166.4,3165.9,3.2078]
[1765470047892,1.7837,3166.0,3165.9,3.2078]
[1765470048285,3.21037282,3166.4,3165.9,3.2078]
[1765470048795,0.00257282,3166.4,3165.9,3.2078]
[1765470049388,4.3719,3166.0,3165.9,3.2078]
[1765470049989,5.2792,3165.9,3165.8,0.00473978]
[1765470051293,3.21037282,3166.4,3165.8,2.66263978]
[1765470051493,3.21037282,3166.4,3165.9,3.2078]
[1765470051899,3.21037282,3166.4,3166.0,0.15791]
[1765470052995,3.3084948,3169.2,3167.3,5.3268]
[1765470053194,2.691,3167.5,3167.4,3.2078]
[1765470053395,5.2792,3167.5,3167.3,3.2078]
[1765470053895,0.0039434,3167.5,3167.4,5.3268]
[1765470054496,2.6949434,3167.5,3167.3,3.36892267]
[1765470054897,0.0039434,3167.5,3167.3,3.36892267]
[1765470055490,2.691,3167.4,3167.3,3.36892267]
[1765470055694,6.9256,3167.4,3167.3,3.21108267]
[1765470056800,2.691,3167.4,3167.3,3.21108267]
[1765470057001,6.9256,3167.4,3167.3,3.21108267]
[1765470058701,0.0039434,3167.5,3167.4,5.3268]
[1765470059095,0.0039434,3167.5,3167.4,5.48464]
[1765470059704,5.2792,3167.4,3167.3,3.21108267]
[1765470059900,0.0039434,3167.5,3167.3,3.21108267]
[1765470060103,0.0039434,3167.5,3167.4,5.3268]
[1765470060402,0.0039434,3167.5,3167.4,7.09214]
[1765470061098,3.2078,3169.1,3169.0,2.81566]
[1765470061300,1.6464,3169.8,3169.1,0.15775]
[1765470061301,5.2792,3169.2,3169.1,0.15775]
[1765470061496,5.2792,3169.2,3168.7,3.21253978]
[1765470061497,5.2792,3168.8,3168.7,3.21253978]
[1765470062103,5.28239098,3168.8,3168.7,3.21253978]
[1765470062496,5.28239098,3168.8,3168.7,0.00473978]
[1765470062699,5.2792,3168.2,3168.1,3.2078]
[1765470063094,8.487,3168.2,3166.7,2.6675568]
[1765470063301,8.487,3168.2,3167.5,3.2078]
[1765470063905,5.28393978,3168.2,3167.5,3.21253978]
[1765470064703,3.21253978,3168.2,3167.6,0.15783]
[1765470065004,5.2792,3167.7,3167.6,0.15783]
[1765470065704,3.21253978,3168.2,3167.6,0.15783]
[1765470066207,5.2792,3167.6,3167.5,3.21253978]
[1765470066899,5.2792,3166.9,3166.8,3.2078]
[1765470067920,2.691,3166.9,3166.8,3.21129084]
[1765470068118,5.2792,3166.6,3166.4,3.06393375]
[1765470068322,8.487,3166.5,3165.8,3.2078]
[1765470068621,0.15786,3167.1,3165.8,3.2078]
[1765470068622,3.2078,3167.0,3165.9,0.15791]
[1765470068820,0.82895049,3166.9,3165.9,0.15791]
[1765470069216,0.00473978,3166.7,3165.9,0.16042885]
[1765470069416,0.00473978,3166.7,3166.2,3.2078]
[1765470069622,0.00473978,3166.7,3166.6,5.3268]
[1765470070219,0.00473978,3166.7,3166.6,2.6579]
[1765470071215,2.69573978,3166.7,3166.2,3.2078]
[1765470071430,5.2792,3166.3,3166.2,3.2078]
[1765470071626,2.691,3166.3,3166.2,3.2078]
[1765470071932,0.00473978,3166.7,3166.6,5.3268]
[1765470073430,0.00473978,3166.7,3166.2,3.3657]
[1765470073431,3.62014324,3166.7,3166.2,3.3657]
[1765470073621,5.6983,3166.3,3166.2,3.3657]
[1765470073828,5.6983,3166.3,3166.2,3.2078]
[1765470074023,0.00473978,3166.7,3166.2,3.2078]
[1765470074229,0.83351169,3166.6,3166.2,4.8822]
[1765470074425,0.00473978,3166.7,3166.2,4.8822]
[1765470074632,0.00473978,3166.7,3166.5,2.7558]
[1765470075024,0.00473978,3166.7,3166.2,4.8822]
[1765470075734,0.00473978,3166.7,3166.6,2.7558]
[1765470077828,2.7822,3166.3,3166.2,3.2078]
[1765470078021,2.7822,3166.3,3166.1,0.1579]
[1765470078022,5.6983,3166.1,3166.0,0.00473978]
[1765470082830,2.7822,3166.1,3166.0,0.00473978]
[1765470083223,5.4913,3166.1,3166.0,0.00473978]
[1765470083833,3.2078,3166.5,3166.0,0.00473978]
[1765470083834,3.2078,3166.5,3166.0,2.90193978]
[1765470084130,0.00473978,3166.7,3166.6,5.6033]
[1765470084931,0.00473978,3166.7,3166.6,3.05508]
[1765470085140,5.60763978,3166.7,3166.6,0.15788]
[1765470085336,0.00473978,3166.7,3166.6,5.76118]
[1765470087136,2.89853978,3166.7,3166.6,0.15788]
[1765470087333,2.8938,3166.5,3166.4,3.2078]
[1765470087535,5.6029,3166.5,3166.4,3.2078]
[1765470087736,0.00473978,3166.7,3166.4,6.105]
[1765470087935,0.00473978,3166.7,3166.4,2.8972]
[1765470088130,2.8938,3166.5,3166.0,0.00473978]
[1765470088532,0.00473978,3166.7,3166.4,2.8972]
[1765470088836,0.00473978,3166.7,3166.6,5.6033]
[1765470089039,0.00473978,3166.7,3166.3,3.2078]
[1765470089040,2.89853978,3166.7,3166.3,3.2078]
[1765470089636,2.89853978,3166.7,3166.3,3.36569]
[1765470089837,0.00473978,3166.7,3166.6,2.8972]
[1765470090035,0.00473978,3166.7,3166.6,5.6033]
[1765470092743,2.89853978,3166.7,3166.5,0.15788]
[1765470092941,2.8938,3166.6,3166.5,0.15788]
[1765470093541,2.8938,3166.6,3166.5,3.05508]
[1765470093741,5.6029,3166.6,3166.5,0.15788]
[1765470093941,0.00473978,3166.7,3166.6,5.6033]
[1765470094932,0.00473978,3166.7,3166.6,5.76118]
[1765470095335,6.1016,3167.7,3167.1,0.15786]
[1765470095544,5.6029,3167.2,3167.1,3.36566]
[1765470095743,5.6029,3167.2,3167.1,3.2078]
[1765470096143,8.8107,3167.2,3166.5,3.36568]
[1765470096343,8.81474148,3167.2,3166.5,3.36568]
[1765470096542,6.10564148,3167.2,3166.5,3.36568]
[1765470096744,3.21184148,3167.2,3167.1,5.6033]
[1765470097346,8.81474148,3167.2,3166.8,1.6237]
[1765470097546,3.21184148,3167.2,3167.1,5.6033]
[1765470097746,6.10564148,3167.2,3167.1,2.8972]
[1765470097946,6.10564148,3167.2,3166.7,0.15787]
[1765470098147,3.21184148,3167.2,3166.7,5.76117]
[1765470099151,3.21184148,3167.2,3167.1,5.6033]
[1765470101340,0.00404148,3167.2,3167.1,8.8111]
[1765470101737,2.89784148,3167.2,3167.1,6.105]
[1765470101939,0.00404148,3167.2,3167.1,8.8111]
[1765470103645,5.60694148,3167.2,3167.1,3.2078]
[1765470103850,5.6029,3166.8,3166.7,3.2078]
[1765470104347,5.6029,3166.8,3166.7,6.105]
[1765470104348,2.8938,3166.8,3166.7,6.105]
[1765470104543,0.00404148,3167.2,3166.7,8.8111]
[1765470104739,2.89784148,3167.2,3167.1,5.6033]
[1765470104940,0.00404148,3167.2,3167.1,5.6033]
[1765470105649,0.00404148,3167.2,3167.1,8.8111]
[1765470106444,5.60694148,3167.2,3167.1,3.2078]
[1765470106840,2.89784148,3167.2,3167.1,6.105]
[1765470107352,0.00404148,3167.2,3167.1,8.8111]
[1765470108150,0.00404148,3167.2,3167.1,5.6033]
[1765470108552,0.00404148,3167.2,3167.1,8.8111]
[1765470108748,0.00404148,3167.2,3167.1,8.96896]
[1765470110057,4.92504148,3167.2,3167.1,3.2078]
[1765470110450,0.00404148,3167.2,3167.1,8.2295]
[1765470110652,2.49484148,3167.2,3167.1,5.6603]
[1765470111656,0.00404148,3167.2,3167.1,8.2295]
[1765470113761,4.92504148,3167.2,3167.1,5.6603]
[1765470113964,4.92504148,3167.2,3167.1,3.2078]
[1765470114756,0.00404148,3167.2,3166.7,8.2295]
[1765470114956,0.00404148,3167.2,3167.1,5.0217]
[1765470115757,2.49484148,3167.2,3167.1,5.0217]
[1765470116461,0.00404148,3167.2,3167.1,5.0217]
[1765470117560,2.4908,3167.0,3166.9,2.61036]
[1765470117766,2.4908,3167.0,3166.9,5.17956]
[1765470117960,2.49484148,3167.2,3167.1,2.4525]
[1765470118160,2.49484148,3167.2,3167.1,4.9053]
[1765470118357,2.49484148,3167.2,3167.1,2.4525]
[1765470118664,0.00404148,3167.2,3167.1,4.9053]
[1765470120255,0.00404148,3167.2,3167.1,5.06316]
[1765470120465,0.00404148,3167.2,3167.1,8.27096]
[1765470121461,4.37470544,3168.3,3167.3,0.15784]
[1765470121662,4.37470544,3168.3,3167.1,8.1131]
[1765470121663,9.24070544,3168.3,3168.2,2.3312]
[1765470121870,5.6424,3168.3,3168.2,4.784]
[1765470122066,3.2078,3168.3,3168.2,4.784]
[1765470122461,3.2078,3168.3,3168.2,4.94408085]
[1765470122666,3.2112306,3168.3,3168.2,4.94408085]
[1765470123767,0.0034306,3168.3,3168.2,4.94408085]
[1765470124071,3.06e-05,3168.3,3168.2,4.94408085]
[1765470124270,0.00473978,3168.6,3168.5,6.2182]
[1765470124663,0.00473978,3168.6,3168.5,6.37599]
[1765470125267,2.44160127,3168.6,3168.5,6.37599]
[1765470125466,4.87300127,3168.6,3168.2,3.21008085]
[1765470125670,2.44160127,3168.6,3168.5,4.784]
[1765470125866,0.00700127,3168.6,3168.5,6.2182]
[1765470126573,4.87300127,3168.6,3168.2,3.21008085]
[1765470127073,4.866,3168.3,3168.2,5.54128085]
[1765470127266,4.87300127,3168.6,3168.2,0.00228085]
[1765470127466,4.866,3168.3,3168.2,2.33348085]
[1765470127671,2.44160127,3168.6,3168.5,4.784]
[1765470128067,0.00700127,3168.6,3168.5,6.2182]
[1765470128468,0.00700127,3168.6,3168.5,6.37599]
[1765470129272,2.44160127,3168.6,3168.5,6.37599]
[1765470129671,0.00700127,3168.6,3168.5,6.37599]
[1765470129866,4.87300127,3168.6,3168.5,0.15779]
[1765470130071,0.00700127,3168.6,3168.5,6.37599]
[1765470130271,0.00700127,3168.6,3168.5,9.58379]
[1765470133576,2.44160127,3168.6,3168.5,6.37599]
[1765470133777,4.87300127,3168.6,3168.5,2.3312]
[1765470133977,0.00700127,3168.6,3168.2,4.78628085]
[1765470134471,4.87300127,3168.6,3168.5,2.3312]
[1765470134667,2.4346,3168.3,3168.2,2.33348085]
[1765470134872,4.866,3168.3,3168.2,0.00228085]
[1765470135279,4.866,3168.3,3168.2,4.78628085]
[1765470135280,2.4346,3168.3,3168.2,4.78628085]
[1765470135882,4.866,3168.3,3168.2,0.00228085]
[1765470136476,0.00700127,3168.6,3168.5,6.2182]
[1765470137580,0.00700127,3168.6,3168.5,6.37599]
[1765470138276,0.00700127,3168.6,3168.5,9.58379]
[1765470138975,3.162,3170.4,3168.5,9.58379]
[1765470138976,3.2078,3169.6,3169.5,5.9605]
[1765470139173,5.3583,3170.1,3170.0,2.2334]
[1765470139374,3.2078,3170.1,3170.0,5.9605]
[1765470139577,3.2078,3170.5,3170.0,5.9605]
[1765470140082,3.21117363,3170.5,3170.0,5.9605]
[1765470140282,4.4729,3170.0,3169.9,0.00473186]
[1765470140578,5.8583,3170.0,3169.9,0.00473186]
[1765470140783,4.4729,3169.5,3169.4,3.2078]
[1765470141290,1.3854,3170.0,3169.4,7.7776]
[1765470141488,4.4729,3169.5,3169.4,5.4412]
[1765470141680,4.4729,3169.5,3169.4,3.2078]
[1765470142387,0.00470545,3169.8,3169.4,7.7776]
[1765470142788,4.4729,3169.5,3169.4,3.2078]
[1765470143091,2.1505,3169.5,3169.4,5.4412]
[1765470143386,2.1505,3169.2,3169.1,2.23813186]
[1765470143888,4.4729,3169.2,3169.1,0.00473186]
[1765470145281,4.4729,3168.3,3168.2,3.21008085]
[1765470145490,7.6807,3168.3,3168.2,0.00228085]
[1765470146290,4.4729,3168.3,3168.2,0.00228085]
[1765470148488,4.4729,3168.0,3167.9,0.00473186]
[1765470148687,5.835,3168.0,3167.9,0.00473186]
[1765470149591,9.04688854,3168.0,3167.9,0.0083321]
[1765470149780,4.4729,3167.4,3167.3,3.2078]
[1765470150192,2.1505,3167.4,3167.3,5.4412]
[1765470150386,2.1505,3167.4,3167.3,7.7776]
[1765470150685,2.1505,3167.4,3167.3,7.7813253]
[1765470151082,2.1505,3167.4,3167.3,5.4449253]
[1765470151282,4.4729,3167.4,3167.3,3.2115253]
[1765470151490,4.4729,3167.4,3167.3,0.0037253]
[1765470151491,7.6807,3167.4,3167.3,0.0037253]
[1765470153498,2.1505,3166.6,3166.5,6.8319]
[1765470153684,4.4729,3166.6,3166.5,5.4412]
[1765470153887,7.6807,3166.6,3166.0,4.5985]
[1765470154087,4.4729,3166.1,3166.0,3.2078]
[1765470154396,4.4729,3166.0,3165.9,2.2334]
[1765470154596,2.1505,3166.0,3165.9,2.23687777]
[1765470155090,4.4729,3166.0,3165.9,0.00347777]
[1765470155686,4.4729,3165.7,3165.6,0.00473186]
[1765470156695,4.4729,3165.1,3165.0,3.2078]
[1765470156885,4.4729,3165.1,3165.0,3.21097797]
[1765470157289,2.1505,3164.7,3164.6,5.4412]
[1765470157492,2.1505,3164.7,3164.6,7.7776]
[1765470157885,2.1505,3164.7,3164.6,5.4412]
[1765470158284,2.1505,3164.7,3164.6,5.44483954]
[1765470159098,4.4729,3164.7,3164.6,3.21143954]
[1765470159495,4.4729,3164.7,3164.6,0.00363954]
[1765470160101,3.2078,3165.2,3164.7,4.5698]
[1765470160296,10.869,3165.3,3164.7,4.5698]
[1765470160502,4.4729,3164.7,3164.6,0.00363954]
[1765470160704,7.6807,3164.7,3164.6,0.00363954]
[1765470160903,4.4729,3164.7,3164.6,0.00363954]
[1765470161711,3.2078,3165.1,3165.0,2.2334]
[1765470162006,7.6807,3165.1,3164.6,0.00363954]
[1765470162402,2.1505,3164.7,3164.6,2.23703954]
[1765470162696,4.4729,3164.7,3164.6,0.00363954]
[1765470162902,13.5785,3165.5,3164.6,4.57343954]
[1765470163704,4.4729,3164.7,3164.6,0.00363954]
[1765470163898,2.1505,3165.1,3165.0,5.9605]
[1765470164097,4.4729,3165.1,3164.6,0.00363954]
[1765470164906,2.1505,3165.1,3165.0,2.2334]
[1765470165496,2.1505,3165.1,3165.0,4.5698]
[1765470165704,3.2078,3165.6,3165.0,5.9605]
[1765470166004,0.0024502,3165.7,3165.6,4.5698]
[1765470166409,0.0024502,3165.7,3165.6,4.72773]
[1765470166603,3.2078,3166.5,3166.2,4.5698]
[1765470167012,1.1581,3167.0,3166.2,4.5698]
[1765470167605,0.00802109,3166.3,3166.2,4.5698]
[1765470168111,2.15852109,3166.3,3166.2,2.2334]
[1765470168304,2.15852109,3166.3,3166.0,1.54861]
[1765470168511,2.1281,3166.0,3165.9,3.21253964]
[1765470168710,4.2344,3166.0,3165.9,3.21253964]
[1765470170010,4.2344,3166.0,3165.9,0.00473964]
[1765470170209,2.1281,3166.0,3165.9,0.00473964]
[1765470170508,4.2344,3166.0,3165.9,0.00473964]
[1765470170709,5.4414,3166.0,3165.9,0.00473964]
[1765470171210,5.4414,3166.0,3165.5,3.2078]
[1765470171211,4.2344,3165.6,3165.5,3.0952053]
[1765470171414,1.207,3165.5,3164.6,4.05603954]
[1765470171711,4.2344,3164.9,3164.8,3.2078]
[1765470172514,1.207,3165.5,3164.8,7.2602]
[1765470173810,2.1281,3164.9,3164.8,2.0558]
[1765470174015,9.3418,3165.6,3164.8,7.2602]
[1765470174409,2.1281,3164.9,3164.8,5.2636]
[1765470175613,4.2344,3164.7,3164.6,0.00363954]
[1765470177610,2.1063,3163.7,3163.6,3.2078]
[1765470177812,4.2344,3163.7,3163.6,3.2078]
[1765470178013,4.2344,3163.7,3163.2,3.2078]
[1765470178704,4.23741648,3163.7,3163.2,3.21152097]
[1765470179512,2.1281,3163.3,3163.2,3.21152097]
[1765470180318,4.2344,3163.3,3163.2,0.00372097]
[1765470180713,11.82481648,3163.7,3163.2,4.05612097]
[1765470180914,2.1281,3163.3,3163.2,2.05952097]
[1765470181218,4.2344,3163.3,3163.2,0.00372097]
[1765470181713,7.4422,3163.3,3163.2,0.00372097]
[1765470181917,4.2344,3162.4,3162.3,3.2078]
[1765470182218,2.1281,3161.9,3161.8,5.2636]
[1765470182418,0.00473964,3162.2,3161.8,5.2636]
[1765470182913,0.00473964,3162.2,3162.1,4.0524]
[1765470184306,0.00473964,3162.2,3162.1,2.0558]
[1765470184513,0.00473964,3162.2,3162.1,4.0524]
[1765470185007,8.6758,3163.3,3162.8,4.0524]
[1765470185413,3.2078,3163.3,3162.8,4.0524]
[1765470185821,3.2078,3163.3,3163.2,2.0558]
[1765470186011,0.00473964,3163.6,3163.5,4.0524]
[1765470186207,2.13283964,3163.6,3163.2,1.1911]
[1765470186614,2.1281,3163.1,3163.0,3.2078]
[1765470187117,2.1281,3163.1,3163.0,5.2636]
[1765470187413,0.00473964,3163.6,3163.0,5.2636]
[1765470188015,4.2344,3163.1,3163.0,3.2078]
[1765470188415,4.2344,3163.1,3162.9,0.00473964]
[1765470188617,2.1281,3163.0,3162.9,0.00473964]
[1765470188823,0.00473964,3163.6,3163.2,5.2435]
[1765470189029,2.1281,3163.3,3162.9,0.00473964]
[1765470189323,2.13283964,3163.6,3163.5,2.0558]
[1765470189510,4.23913964,3163.6,3163.2,1.1911]
[1765470190121,2.1281,3163.3,3163.0,3.2078]
[1765470190418,2.1281,3163.0,3162.9,2.06053964]
[1765470190927,4.2344,3163.0,3162.9,0.00473964]
[1765470191318,2.1281,3163.0,3162.9,2.06053964]
[1765470191520,0.00473964,3163.6,3162.9,4.05713964]
[1765470192023,0.00473964,3163.6,3163.5,4.0524]
[1765470192324,4.23913964,3163.6,3163.2,1.1911]
[1765470192724,0.00473964,3163.6,3163.5,5.2435]
[1765470193620,0.00473964,3163.6,3163.5,3.2469]
[1765470193817,0.00473964,3163.6,3163.5,5.171]
[1765470194330,1.98243964,3163.6,3163.5,3.2469]
[1765470194627,3.9747,3163.0,3162.0,4.55701]
[1765470194925,3.2078,3162.7,3162.6,1.2099]
[1765470195724,4.5006,3162.7,3162.6,1.2099]
[1765470196121,5.7731,3162.7,3162.6,1.2099]
[1765470196822,5.7731,3162.7,3162.0,4.55701]
[1765470197220,5.7731,3162.7,3162.0,4.3989]
[1765470197720,4.5006,3162.7,3162.6,1.2099]
[1765470198021,6.244,3162.7,3162.6,1.2099]
[1765470198618,4.5006,3162.7,3162.6,1.2099]
[1765470199123,6.2222,3162.7,3162.6,1.2099]
[1765470200520,6.2222,3162.7,3162.0,4.3989]
[1765470200723,1.6838,3162.1,3162.0,4.3989]
[1765470200921,3.3676,3162.1,3162.0,4.3989]
[1765470201224,1.6838,3162.1,3162.0,4.3989]
[1765470201422,0.82660953,3162.6,3162.0,6.3714]
[1765470201724,3.3244,3162.1,3162.0,4.3989]
[1765470202329,3.2078,3162.7,3162.0,6.3714]
[1765470202527,9.367,3162.5,3162.0,6.3714]
[1765470202828,9.367,3162.5,3162.0,4.3989]
[1765470202829,1.6407,3162.1,3162.0,4.3989]
[1765470203030,3.2078,3162.7,3162.0,6.3714]
[1765470203632,3.2078,3162.3,3162.2,3.9434]
[1765470204121,3.2078,3162.9,3162.8,3.9434]
[1765470204421,3.2078,3163.3,3163.2,3.9434]
[1765470204923,0.00473964,3163.6,3163.5,1.9725]
[1765470205221,0.00473964,3163.6,3163.5,7.1512]
[1765470207923,3.2078,3164.7,3164.5,1.9725]
[1765470208125,3.2078,3164.7,3164.6,1.9725]
[1765470208327,3.2078,3164.7,3164.6,3.9434]
[1765470208927,7.33290394,3164.7,3164.6,0.00284029]
[1765470209526,3.21140394,3164.7,3164.6,3.94624029]
[1765470210022,0.00473964,3165.0,3164.9,3.9434]
[1765470210322,2.14723964,3165.0,3164.9,3.2078]
[1765470211229,2.15132259,3165.0,3164.9,3.2078]
[1765470211428,2.15132259,3165.0,3164.9,5.1803]
[1765470211830,2.15132259,3165.0,3164.9,3.2078]
[1765470213528,4.13032259,3165.0,3164.9,3.2078]
[1765470213731,5.3503,3165.6,3165.0,1.2277]
[1765470213930,2.1425,3165.6,3165.0,1.2277]
[1765470214125,9.37489,3166.5,3166.4,1.9725]
[1765470214126,3.2078,3166.5,3166.4,1.9725]
[1765470214434,5.3503,3166.5,3165.9,3.2078]
[1765470214731,5.35868752,3166.5,3166.4,1.9725]
[1765470214920,3.21618752,3166.5,3166.4,1.9725]
[1765470215126,3.21618752,3166.5,3166.4,3.9434]
[1765470215729,0.00838752,3166.5,3166.4,3.9434]
[1765470216031,2.15088752,3166.5,3166.2,1.2277]
[1765470216929,2.1425,3166.3,3165.9,3.21253964]
[1765470217134,3.2078,3166.9,3166.8,1.9725]
[1765470217436,3.2078,3167.4,3166.8,3.2002]
[1765470217739,4.1215,3166.7,3166.2,1.2277]
[1765470217932,3.2078,3166.9,3166.6,1.9725]
[1765470218134,3.21188031,3166.9,3166.6,1.9725]
[1765470218538,0.00408031,3166.9,3166.8,5.1711]
[1765470219131,0.00408031,3166.9,3166.8,8.3789]
[1765470219430,3.2078,3168.1,3167.0,3.9434]
[1765470219631,3.2078,3168.1,3167.4,1.2277]
[1765470220029,0.15779,3168.4,3167.4,1.2277]
[1765470220030,3.2078,3167.7,3167.4,1.2277]
[1765470220437,2.1425,3167.5,3167.4,0.00296401]
[1765470220627,0.00352206,3167.7,3167.4,1.97546401]
[1765470220836,2.1425,3167.5,3167.4,0.00296401]
[1765470221227,2.1425,3167.5,3167.4,1.97546401]
[1765470221433,3.6808,3168.3,3167.4,1.97546401]
[1765470221434,3.2078,3168.5,3168.0,5.1711]